fUST/lending_fUST_20250829
["ID","MTS","AMOUNT","RATE_DAILY","PERIOD"]
[381971771,1756462246890,-1000.0,0.00035616,10]
[381971772,1756462246899,-481.75593078,0.00035616,10]
[381971773,1756462246913,-480.0,0.00035616,10]
[381971774,1756462246922,-480.0,0.00035616,10]
[381971775,1756462246931,-481.58385751,0.00035616,10]
[381971776,1756462246941,-482.29212739,0.00035616,10]
[381971777,1756462246950,-482.87301772,0.00035616,10]
[381971778,1756462246959,-480.0,0.00035616,10]
[381971779,1756462246968,-482.8925012,0.00035616,10]
[381971780,1756462246977,-480.0,0.00035616,10]
[381971781,1756462246986,-480.0,0.00035616,10]
[381971782,1756462246996,-481.82710583,0.00035616,10]
[381971783,1756462247005,-483.65164601,0.00035616,10]
[381971784,1756462247014,-480.0,0.00035616,10]
[381971785,1756462247023,-482.99846566,0.00035616,10]
[381971786,1756462247032,-480.0,0.00035616,10]
[381971787,1756462247041,-480.0,0.00035616,10]
[381971788,1756462247050,-480.0,0.00035616,10]
[381971789,1756462247059,-480.0,0.00035616,10]
[381971790,1756462247069,-480.0,0.00035616,10]
[381971791,1756462247078,-480.0,0.00035616,10]
[381971792,1756462247088,-480.0,0.00035616,10]
[381971793,1756462247097,-481.53800657,0.00035616,10]
[381971794,1756462247106,-481.4254302,0.00035616,10]
[381971795,1756462247115,-480.79907398,0.00035616,10]
[381971796,1756462247125,-518.64091112,0.00035616,10]
[381971797,1756462247134,-480.83101833,0.00035616,10]
[381971798,1756462247143,-481.57868235,0.00035616,10]
[381971799,1756462247153,-480.80456747,0.00035616,10]
[381971800,1756462247163,-480.0,0.00035616,10]
[381971801,1756462247172,-480.0,0.00035616,10]
[381971802,1756462247181,-480.96037101,0.00035616,10]
[381971803,1756462247190,-480.0,0.00035616,10]
[381971804,1756462247200,-480.0,0.00035616,10]
[381971805,1756462247210,-483.36913173,0.00035616,10]
[381971806,1756462247219,-480.0,0.00035616,10]
[381971807,1756462247228,-480.0,0.00035616,10]
[381971808,1756462247237,-482.6025052,0.00035616,10]
[381971809,1756462247246,-480.0,0.00035616,10]
[381971810,1756462247256,-481.6015262,0.00035616,10]
[381971811,1756462247265,-480.58743605,0.00035616,10]
[381971812,1756462247275,-480.0,0.00035616,10]
[381971813,1756462247284,-481.36633915,0.00035616,10]
[381971814,1756462247293,-480.0,0.00035616,10]
[381971815,1756462247305,-480.0,0.00035616,10]
[381971816,1756462247315,-481.74393778,0.00035616,10]
[381971817,1756462247324,-481.06779258,0.00035616,10]
[381971818,1756462247335,-480.0,0.00035616,10]
[381971819,1756462247344,-481.8511446,0.00035616,10]
[381971820,1756462247355,-481.89993477,0.00035616,10]
[381971821,1756462247364,-480.0,0.00035616,10]
[381971822,1756462247376,-480.0,0.00035616,10]
[381971823,1756462247387,-480.0,0.00035616,10]
[381971824,1756462247397,-480.0,0.00035616,10]
[381971825,1756462247407,-482.88260923,0.00035616,10]
[381971826,1756462247419,-482.03444119,0.00035616,10]
[381971827,1756462247429,-480.81309666,0.00035616,10]
[381971828,1756462247439,-480.32029745,0.00035616,10]
[381971829,1756462247448,-462.75118161,0.00035616,10]
[381971830,1756462247459,-482.29428668,0.00035616,10]
[381971831,1756462247470,-204.86617187,0.00035616,10]
[381971832,1756462247479,-480.0,0.00035616,10]
[381971833,1756462247488,-482.64949937,0.00035616,10]
[381971834,1756462247497,-480.0,0.00035616,10]
[381971835,1756462247507,-481.56092255,0.00035616,10]
[381971836,1756462247516,-480.0,0.00035616,10]
[381971837,1756462247526,-480.0,0.00035616,10]
[381971838,1756462247535,-480.0,0.00035616,10]
[381971839,1756462247546,-480.0,0.00035616,10]
[381971840,1756462247555,-480.0,0.00035616,10]
[381971841,1756462247565,-480.0,0.00035616,10]
[381971842,1756462247574,-480.0,0.00035616,10]
[381971843,1756462247583,-480.71635203,0.00035616,10]
[381971844,1756462247592,-379.78074787,0.00035616,10]
[381971845,1756462247601,-480.0,0.00035616,10]
[381971846,1756462247611,-480.0,0.00035616,10]
[381971847,1756462247621,-480.0,0.00035616,10]
[381971848,1756462247631,-281.61326467,0.00035616,10]
[381971849,1756462247639,-480.0,0.00035616,10]
[381971850,1756462247648,-603.72869171,0.00035616,10]
[381971851,1756462247658,-480.0,0.00035616,10]
[381971852,1756462247667,-480.0,0.00035616,10]
[381971853,1756462247676,-482.99243371,0.00035616,10]
[381971854,1756462247685,-480.0,0.00035616,10]
[381971855,1756462247694,-480.0,0.00035616,10]
[381971856,1756462247703,-480.0,0.00035616,10]
[381971857,1756462247714,-480.0,0.00035616,10]
[381971858,1756462247724,-482.50433328,0.00035616,10]
[381971859,1756462247733,-480.0,0.00035616,10]
[381971860,1756462247742,-483.35796284,0.00035616,10]
[381971861,1756462247751,-480.0,0.00035616,10]
[381971862,1756462247761,-480.0,0.00035616,10]
[381971863,1756462247770,-482.09231195,0.00035616,10]
[381971864,1756462247779,-480.0,0.00035616,10]
[381971865,1756462247789,-480.0,0.00035616,10]
[381971866,1756462247798,-480.0,0.00035616,10]
[381971867,1756462247807,-480.0,0.00035616,10]
[381971868,1756462247817,-480.0,0.00035616,10]
[381971869,1756462247826,-480.0,0.00035616,10]
[381971870,1756462247836,-480.0,0.00035616,10]
[381971871,1756462247845,-480.0,0.00035616,10]
[381971872,1756462247854,-199.79811512,0.00035616,10]
[381971873,1756462247863,-480.0,0.00035616,10]
[381971874,1756462247872,-480.0,0.00035616,10]
[381971875,1756462247881,-485.61886798,0.00035616,10]
[381971876,1756462247890,-480.0,0.00035616,10]
[381971877,1756462247901,-480.0,0.00035616,10]
[381971878,1756462247911,-480.0,0.00035616,10]
[381971879,1756462247920,-480.0,0.00035616,10]
[381971880,1756462247930,-480.0,0.00035616,10]
[381971881,1756462247939,-481.98603096,0.00035616,10]
[381971882,1756462247949,-480.0,0.00035616,10]
[381971883,1756462247958,-480.0,0.00035616,10]
[381971884,1756462247967,-480.0,0.00035616,10]
[381971885,1756462247976,-480.0,0.00035616,10]
[381971886,1756462247986,-480.0,0.00035616,10]
[381971887,1756462247996,-480.0,0.00035616,10]
[381971888,1756462248006,-480.0,0.00035616,10]
[381971889,1756462248015,-480.0,0.00035616,10]
[381971890,1756462248025,-480.0,0.00035616,10]
[381971891,1756462248034,-480.0,0.00035616,10]
[381971892,1756462248045,-480.0,0.00035616,10]
[381971893,1756462248055,-480.0,0.00035616,10]
[381971894,1756462248064,-480.0,0.00035616,10]
[381971895,1756462248074,-480.0,0.00035616,10]
[381971896,1756462248085,-480.7391232,0.00035616,10]
[381971897,1756462248094,-480.0,0.00035616,10]
[381971898,1756462248104,-480.0,0.00035616,10]
[381971899,1756462248114,-480.0,0.00035616,10]
[381971900,1756462248123,-480.0,0.00035616,10]
[381971901,1756462248133,-480.62043089,0.00035616,10]
[381971902,1756462248143,-480.0,0.00035616,10]
[381971903,1756462248153,-486.17771063,0.00035616,10]
[381971904,1756462248163,-480.0,0.00035616,10]
[381971905,1756462248272,-480.0,0.00035616,10]
[381971906,1756462248283,-480.0,0.00035616,10]
[381971907,1756462248293,-480.0,0.00035616,10]
[381971908,1756462248303,-480.0,0.00035616,10]
[381971909,1756462248312,-480.0,0.00035616,10]
[381971910,1756462248322,-375.67680757,0.00035616,10]
[381971911,1756462248331,-480.0,0.00035616,10]
[381971912,1756462248340,-480.0,0.00035616,10]
[381971913,1756462248350,-480.0,0.00035616,10]
[381971914,1756462248360,-481.14608382,0.00035616,10]
[381971915,1756462248372,-480.89502264,0.00035616,10]
[381971916,1756462248385,-483.21090898,0.00035616,10]
[381971917,1756462248395,-481.35039734,0.00035616,10]
[381971918,1756462248404,-480.0,0.00035616,10]
[381971919,1756462248413,-480.0,0.00035616,10]
[381971920,1756462248425,-480.0,0.00035616,10]
[381971921,1756462248435,-480.0,0.00035616,10]
[381971922,1756462248444,-480.0,0.00035616,10]
[381971923,1756462248455,-480.0,0.00035616,10]
[381971924,1756462248464,-482.31128252,0.00035616,10]
[381971925,1756462248474,-480.0,0.00035616,10]
[381971926,1756462248484,-480.0,0.00035616,10]
[381971927,1756462248493,-565.75033166,0.00035616,10]
[381971928,1756462248502,-480.0,0.00035616,10]
[381971929,1756462248512,-480.0,0.00035616,10]
[381971930,1756462248521,-484.50874954,0.00035616,10]
[381971931,1756462248531,-481.98,0.00035616,10]
[381971932,1756462248540,-480.0,0.00035616,10]
[381971933,1756462248551,-480.0,0.00035616,10]
[381971934,1756462248560,-480.0,0.00035616,10]
[381971935,1756462248570,-482.5653881,0.00035616,10]
[381971936,1756462248580,-480.0,0.00035616,10]
[381971937,1756462248589,-480.0,0.00035616,10]
[381971938,1756462248599,-480.0,0.00035616,10]
[381971939,1756462248608,-480.0,0.00035616,10]
[381971940,1756462248617,-480.0,0.00035616,10]
[381971941,1756462248627,-480.0,0.00035616,10]
[381971942,1756462248636,-480.0,0.00035616,10]
[381971943,1756462248645,-483.69936263,0.00035616,10]
[381971944,1756462248655,-480.0,0.00035616,10]
[381971945,1756462248665,-480.0,0.00035616,10]
[381971946,1756462248675,-480.0,0.00035616,10]
[381971947,1756462248684,-483.33000146,0.00035616,10]
[381971948,1756462248693,-480.0,0.00035616,10]
[381971949,1756462248702,-480.0,0.00035616,10]
[381971950,1756462248712,-482.43449799,0.00035616,7]
[381971951,1756462248721,-480.0,0.00035616,10]
[381971952,1756462248731,-500.0,0.00035616,10]
[381971953,1756462248740,-483.22010169,0.00035616,10]
[381971954,1756462248750,-500.0,0.00035616,10]
[381971955,1756462248761,-500.0,0.00035616,10]
[381971956,1756462248770,-500.0,0.00035616,10]
[381971957,1756462248780,-500.0,0.00035616,10]
[381971958,1756462248789,-500.0,0.00035616,10]
[381971959,1756462248799,-500.0,0.00035616,10]
[381971960,1756462248808,-500.0,0.00035616,10]
[381971961,1756462248817,-500.0,0.00035616,10]
[381971962,1756462248827,-329.45776457,0.00035616,10]
[381971963,1756462248836,-480.0,0.00035616,10]
[381971964,1756462248845,-480.0,0.00035616,10]
[381971965,1756462248855,-480.0,0.00035616,10]
[381971966,1756462248864,-480.0,0.00035616,10]
[381971967,1756462248873,-480.0,0.00035616,10]
[381971968,1756462248883,-480.0,0.00035616,10]
[381971969,1756462248893,-466.65437506,0.00035616,10]
[381971970,1756462248902,-480.0,0.00035616,10]
[381971971,1756462248911,-480.0,0.00035616,10]
[381971972,1756462248921,-480.0,0.00035616,10]
[381971973,1756462248930,-480.0,0.00035616,10]
[381971974,1756462248939,-482.24417656,0.00035616,10]
[381971975,1756462248949,-480.0,0.00035616,10]
[381971976,1756462248959,-480.0,0.00035616,10]
[381971977,1756462248969,-481.8964304,0.00035616,10]
[381971978,1756462248978,-480.0,0.00035616,10]
[381971979,1756462248988,-480.0,0.00035616,10]
[381971980,1756462248997,-481.7548306,0.00035616,10]
[381971981,1756462249007,-483.43696272,0.00035616,10]
[381971982,1756462249017,-515.61209769,0.00035616,10]
[381971983,1756462249026,-482.10275995,0.00035616,10]
[381971984,1756462249036,-480.0,0.00035616,10]
[381971985,1756462249045,-480.93888805,0.00035616,10]
[381971986,1756462249055,-484.19917781,0.00035616,10]
[381971987,1756462249064,-480.0,0.00035616,10]
[381971988,1756462249074,-480.00000001,0.00035616,10]
[381971989,1756462249084,-480.0,0.00035616,10]
[381971990,1756462249094,-480.0,0.00035616,10]
[381971991,1756462249104,-482.50692536,0.00035616,10]
[381971992,1756462249113,-480.74364881,0.00035616,10]
[381971993,1756462249122,-480.0,0.00035616,10]
[381971994,1756462249132,-480.0,0.00035616,10]
[381971995,1756462249142,-482.75905399,0.00035616,10]
[381971996,1756462249152,-480.0,0.00035616,10]
[381971997,1756462249162,-480.0,0.00035616,10]
[381971998,1756462249172,-480.76753638,0.00035616,10]
[381971999,1756462249181,-480.0,0.00035616,10]
[381972000,1756462249191,-483.66672146,0.00035616,10]
[381972001,1756462249201,-480.0,0.00035616,10]
[381972002,1756462249210,-480.0,0.00035616,10]
[381972003,1756462249220,-480.0,0.00035616,10]
[381972004,1756462249229,-483.4023351,0.00035616,10]
[381972005,1756462249238,-480.0,0.00035616,10]
[381972006,1756462249248,-544.13800167,0.00035616,10]
[381972007,1756462249259,-480.0,0.00035616,10]
[381972008,1756462249268,-480.0,0.00035616,10]
[381972009,1756462249277,-480.0,0.00035616,10]
[381972010,1756462249286,-485.26238951,0.00035616,10]
[381972011,1756462249295,-480.0,0.00035616,10]
[381972012,1756462249305,-480.0,0.00035616,10]
[381972013,1756462249315,-480.56806402,0.00035616,10]
[381972014,1756462249324,-483.21782797,0.00035616,10]
[381972015,1756462249334,-480.0,0.00035616,10]
[381972016,1756462249343,-480.0,0.00035616,10]
[381972017,1756462249353,-486.86696598,0.00035616,10]
[381972018,1756462249362,-480.0,0.00035616,10]
[381972019,1756462249372,-480.0,0.00035616,10]
[381972020,1756462249384,-482.86439895,0.00035616,10]
[381972021,1756462249393,-480.0,0.00035616,10]
[381972022,1756462249402,-480.0,0.00035616,10]
[381972023,1756462249412,-482.46469041,0.00035616,10]
[381972024,1756462249423,-483.75376532,0.00035616,10]
[381972025,1756462249432,-483.93357725,0.00035616,10]
[381972026,1756462249443,-480.0,0.00035616,10]
[381972027,1756462249453,-483.53647284,0.00035616,10]
[381972028,1756462249462,-480.0,0.00035616,10]
[381972029,1756462249471,-480.0,0.00035616,10]
[381972030,1756462249480,-480.0,0.00035616,10]
[381972031,1756462249490,-483.65975217,0.00035616,10]
[381972032,1756462249500,-480.0,0.00035616,10]
[381972033,1756462249509,-480.0,0.00035616,10]
[381972034,1756462249519,-485.69,0.00035616,10]
[381972035,1756462249528,-480.0,0.00035616,10]
[381972036,1756462249537,-480.0,0.00035616,10]
[381972037,1756462249547,-151.0,0.00035616,7]
[381972038,1756462249558,-480.0,0.00035616,10]
[381972039,1756462249567,-151.0,0.00035616,7]
[381972040,1756462249576,-462.34220752,0.00035616,10]
[381972041,1756462249585,-480.0,0.00035616,10]
[381972042,1756462249595,-151.0,0.00035616,7]
[381972043,1756462249604,-480.0,0.00035616,10]
[381972044,1756462249613,-483.02350968,0.00035616,10]
[381972045,1756462249622,-480.0,0.00035616,10]
[381972046,1756462249631,-480.0,0.00035616,10]
[381972047,1756462249640,-482.49048348,0.00035616,10]
[381972048,1756462249649,-486.01291849,0.00035616,10]
[381972049,1756462249658,-480.0,0.00035616,10]
[381972050,1756462249667,-480.0,0.00035616,10]
[381972051,1756462249678,-480.0,0.00035616,10]
[381972052,1756462249687,-480.0,0.00035616,10]
[381972053,1756462249696,-483.96740482,0.00035616,10]
[381972054,1756462249705,-480.0,0.00035616,10]
[381972055,1756462249714,-480.0,0.00035616,10]
[381972056,1756462249723,-480.0,0.00035616,10]
[381972057,1756462249733,-480.0,0.00035616,7]
[381972058,1756462249742,-486.97863313,0.00035616,10]
[381972059,1756462249751,-480.0,0.00035616,10]
[381972060,1756462249761,-480.0,0.00035616,10]
[381972061,1756462249770,-480.0,0.00035616,10]
[381972062,1756462249779,-480.0,0.00035616,10]
[381972063,1756462249789,-482.65146831,0.00035616,10]
[381972064,1756462249798,-480.0,0.00035616,10]
[381972065,1756462249808,-480.0,0.00035616,10]
[381972066,1756462249817,-523.63794742,0.00035616,10]
[381972067,1756462249827,-482.91619277,0.00035616,10]
[381972068,1756462249836,-480.0,0.00035616,10]
[381972069,1756462249846,-480.0,0.00035616,10]
[381972070,1756462249855,-480.0,0.00035616,10]
[381972071,1756462249864,-528.32774827,0.00035616,10]
[381972072,1756462249873,-482.79395713,0.00035616,10]
[381972073,1756462249883,-484.43624086,0.00035616,10]
[381972074,1756462249893,-425.57542551,0.00035616,10]
[381972075,1756462249902,-481.83159036,0.00035616,10]
[381972076,1756462249911,-480.0,0.00035616,10]
[381972077,1756462249921,-480.0,0.00035616,10]
[381972078,1756462249930,-481.43704719,0.00035616,10]
[381972079,1756462249939,-480.0,0.00035616,10]
[381972080,1756462249949,-480.0,0.00035616,10]
[381972081,1756462249958,-483.00666222,0.00035616,10]
[381972082,1756462249967,-480.0,0.00035616,10]
[381972083,1756462249976,-483.08462744,0.00035616,10]
[381972084,1756462249985,-480.0,0.00035616,10]
[381972085,1756462249994,-708.64,0.00035616,10]
[381972086,1756462250004,-480.0,0.00035616,10]
[381972087,1756462250014,-480.0,0.00035616,10]
[381972088,1756462250022,-482.49994916,0.00035616,10]
[381972089,1756462250031,-480.0,0.00035616,10]
[381972090,1756462250040,-480.0,0.00035616,10]
[381972091,1756462250049,-480.0,0.00035616,10]
[381972092,1756462250059,-526.13152709,0.00035616,10]
[381972093,1756462250068,-462.20962229,0.00035616,10]
[381972094,1756462250078,-480.0,0.00035616,10]
[381972095,1756462250087,-482.09484346,0.00035616,10]
[381972096,1756462250097,-484.83301639,0.00035616,10]
[381972097,1756462250106,-480.0,0.00035616,10]
[381972098,1756462250115,-480.0,0.00035616,10]
[381972099,1756462250125,-519.07,0.00035616,10]
[381972100,1756462250134,-480.0,0.00035616,10]
[381972101,1756462250143,-480.0,0.00035616,10]
[381972102,1756462250152,-426.57022394,0.00035616,10]
[381972103,1756462250161,-480.0,0.00035616,10]
[381972104,1756462250170,-481.56885536,0.00035616,10]
[381972105,1756462250179,-480.0,0.00035616,10]
[381972106,1756462250189,-482.51004842,0.00035616,10]
[381972107,1756462250198,-484.35807923,0.00035616,10]
[381972108,1756462250207,-480.0,0.00035616,10]
[381972109,1756462250216,-480.0,0.00035616,10]
[381972110,1756462250225,-480.0,0.00035616,10]
[381972111,1756462250235,-482.55663218,0.00035616,10]
[381972112,1756462250243,-480.0,0.00035616,10]
[381972113,1756462250253,-480.0,0.00035616,10]
[381972114,1756462250262,-480.0,0.00035616,10]
[381972115,1756462250271,-2369.85,0.00035616,10]
[381972116,1756462250280,-480.0,0.00035616,10]
[381972117,1756462250289,-483.88768556,0.00035616,10]
[381972118,1756462250298,-566.86637933,0.00035616,10]
[381972119,1756462250307,-481.03615012,0.00035616,10]
[381972120,1756462250316,-480.0,0.00035616,10]
[381972121,1756462250325,-480.0,0.00035616,10]
[381972122,1756462250334,-480.0,0.00035616,10]
[381972123,1756462250343,-480.0,0.00035616,10]
[381972124,1756462250352,-482.38084406,0.00035616,10]
[381972125,1756462250361,-481.34823501,0.00035616,10]
[381972126,1756462250371,-480.0,0.00035616,10]
[381972127,1756462250384,-480.0,0.00035616,10]
[381972128,1756462250393,-2614.37,0.00035616,10]
[381972129,1756462250402,-480.0,0.00035616,10]
[381972130,1756462250412,-480.0,0.00035616,10]
[381972131,1756462250422,-1221.53,0.00035616,10]
[381972132,1756462250431,-480.0,0.00035616,10]
[381972133,1756462250440,-480.0,0.00035616,10]
[381972134,1756462250449,-480.0,0.00035616,10]
[381972135,1756462250459,-480.0,0.00035616,10]
[381972136,1756462250468,-482.60834661,0.00035616,10]
[381972137,1756462250478,-481.80815951,0.00035616,10]
[381972138,1756462250487,-480.0,0.00035616,10]
[381972139,1756462250496,-480.0,0.00035616,10]
[381972140,1756462250505,-480.0,0.00035616,10]
[381972141,1756462250514,-3578.69,0.00035616,10]
[381972142,1756462250523,-480.0,0.00035616,10]
[381972143,1756462250532,-481.60536131,0.00035616,10]
[381972144,1756462250541,-480.0,0.00035616,10]
[381972145,1756462250550,-482.68614331,0.00035616,10]
[381972146,1756462250559,-480.0,0.00035616,10]
[381972147,1756462250569,-480.0,0.00035616,10]
[381972148,1756462250578,-480.0,0.00035616,10]
[381972149,1756462250680,-480.0,0.00035616,10]
[381972150,1756462250690,-480.0,0.00035616,10]
[381972151,1756462250699,-480.0,0.00035616,10]
[381972152,1756462250708,-902.86,0.00035616,10]
[381972153,1756462250718,-480.0,0.00035616,10]
[381972154,1756462250727,-483.1328357,0.00035616,10]
[381972155,1756462250737,-480.0,0.00035616,10]
[381972156,1756462250747,-480.0,0.00035616,10]
[381972157,1756462250756,-480.0,0.00035616,10]
[381972158,1756462250766,-483.28085655,0.00035616,10]
[381972159,1756462250775,-480.0,0.00035616,10]
[381972160,1756462250785,-529.77114056,0.00035616,10]
[381972161,1756462250794,-480.0,0.00035616,10]
[381972162,1756462250804,-480.0,0.00035616,10]
[381972163,1756462250814,-484.75585777,0.00035616,10]
[381972164,1756462250823,-1113.85,0.00035616,10]
[381972165,1756462250833,-480.0,0.00035616,10]
[381972166,1756462250842,-480.0,0.00035616,10]
[381972167,1756462250852,-480.0,0.00035616,10]
[381972168,1756462250862,-735.99,0.00035616,10]
[381972169,1756462250872,-484.24709839,0.00035616,10]
[381972170,1756462250882,-483.29613032,0.00035616,10]
[381972171,1756462250891,-480.0,0.00035616,10]
[381972172,1756462250901,-480.0,0.00035616,10]
[381972173,1756462250911,-483.51582985,0.00035616,10]
[381972174,1756462250921,-480.0,0.00035616,10]
[381972175,1756462250931,-480.0,0.00035616,10]
[381972176,1756462250940,-480.0,0.00035616,10]
[381972177,1756462250949,-484.92241313,0.00035616,10]
[381972178,1756462250959,-480.0,0.00035616,10]
[381972179,1756462250968,-482.35269512,0.00035616,10]
[381972180,1756462250978,-480.0,0.00035616,10]
[381972181,1756462250987,-492.6,0.00035616,10]
[381972182,1756462250996,-480.0,0.00035616,10]
[381972183,1756462251006,-480.0,0.00035616,10]
[381972184,1756462251015,-409.68101602,0.00035616,10]
[381972185,1756462251025,-480.0,0.00035616,10]
[381972186,1756462251036,-791.34,0.00035616,10]
[381972187,1756462251046,-480.0,0.00035616,10]
[381972188,1756462251056,-481.50780087,0.00035616,10]
[381972189,1756462251065,-480.0,0.00035616,10]
[381972190,1756462251074,-5803.53,0.00035616,10]
[381972191,1756462251084,-563.72,0.00035616,10]
[381972192,1756462251094,-480.0,0.00035616,10]
[381972193,1756462251104,-480.37401038,0.00035616,10]
[381972194,1756462251113,-480.0,0.00035616,10]
[381972195,1756462251123,-480.0,0.00035616,10]
[381972196,1756462251132,-483.62632751,0.00035616,10]
[381972197,1756462251141,-480.0,0.00035616,10]
[381972198,1756462251151,-480.0,0.00035616,10]
[381972199,1756462251160,-3884.43,0.00035616,3]
[381972200,1756462251170,-482.00876631,0.00035616,10]
[381972201,1756462251181,-480.0,0.00035616,10]
[381972202,1756462251190,-480.0,0.00035616,10]
[381972203,1756462251200,-480.0,0.00035616,10]
[381972204,1756462251209,-480.0,0.00035616,10]
[381972205,1756462251219,-480.0,0.00035616,10]
[381972206,1756462251228,-480.0,0.00035616,10]
[381972207,1756462251238,-797.23111155,0.00035616,10]
[381972208,1756462251358,-71.24888845,0.00035616,10]
[381972209,1756462251367,-955.73,0.00035616,10]
[381972210,1756462251379,-480.0,0.00035616,10]
[381972211,1756462251389,-480.0,0.00035616,10]
[381972212,1756462251399,-614.27801532,0.00035616,10]
[381972213,1756462251408,-858.61,0.00035616,10]
[381972214,1756462251418,-480.0,0.00035616,10]
[381972215,1756462251428,-480.0,0.00035616,10]
[381972216,1756462251437,-480.0,0.00035616,10]
[381972217,1756462251447,-480.0,0.00035616,10]
[381972218,1756462251459,-480.0,0.00035616,10]
[381972219,1756462251468,-1259.29,0.00035616,10]
[381972220,1756462251478,-480.0,0.00035616,10]
[381972221,1756462251487,-482.53753397,0.00035616,10]
[381972222,1756462251496,-564.27,0.00035616,10]
[381972223,1756462251506,-480.0,0.00035616,10]
[381972224,1756462251515,-480.0,0.00035616,10]
[381972225,1756462251525,-480.0,0.00035616,10]
[381972226,1756462251535,-480.0,0.00035616,10]
[381972227,1756462251544,-480.0,0.00035616,10]
[381972228,1756462251555,-480.0,0.00035616,10]
[381972229,1756462251564,-480.0,0.00035616,10]
[381972230,1756462251574,-480.0,0.00035616,10]
[381972231,1756462251583,-480.0,0.00035616,10]
[381972232,1756462251593,-480.0,0.00035616,10]
[381972233,1756462251602,-480.0,0.00035616,10]
[381972234,1756462251611,-480.0,0.00035616,10]
[381972235,1756462251620,-482.48700436,0.00035616,10]
[381972236,1756462251629,-483.18535064,0.00035616,10]
[381972237,1756462251639,-482.03992736,0.00035616,10]
[381972238,1756462251648,-482.39355602,0.00035616,7]
[381972239,1756462251658,-480.0,0.00035616,10]
[381972240,1756462251667,-480.0,0.00035616,10]
[381972241,1756462251677,-480.0,0.00035616,10]
[381972242,1756462251686,-480.0,0.00035616,10]
[381972243,1756462251695,-480.0,0.00035616,10]
[381972244,1756462251705,-480.0,0.00035616,10]
[381972245,1756462251714,-482.3281145,0.00035616,10]
[381972246,1756462251724,-480.0,0.00035616,10]
[381972247,1756462251734,-5444.57,0.00035616,10]
[381972248,1756462251743,-480.0,0.00035616,10]
[381972249,1756462251752,-480.0,0.00035616,10]
[381972250,1756462251764,-480.0,0.00035616,10]
[381972251,1756462251774,-609.76225338,0.00035616,10]
[381972252,1756462251783,-480.0,0.00035616,10]
[381972253,1756462251793,-480.0,0.00035616,7]
[381972254,1756462251802,-480.0,0.00035616,10]
[381972255,1756462251812,-483.44999073,0.00035616,10]
[381972256,1756462251822,-500.0,0.00035616,10]
[381972257,1756462251831,-480.0,0.00035616,10]
[381972258,1756462251841,-483.44918461,0.00035616,10]
[381972259,1756462251850,-480.0,0.00035616,10]
[381972260,1756462251860,-483.11627452,0.00035616,10]
[381972261,1756462251869,-539.61,0.00035616,10]
[381972262,1756462251880,-484.5709022,0.00035616,10]
[381972263,1756462251889,-480.0,0.00035616,10]
[381972264,1756462251899,-1537.08,0.00035616,10]
[381972265,1756462251908,-480.69639196,0.00035616,10]
[381972266,1756462251917,-480.0,0.00035616,10]
[381972267,1756462251927,-480.0,0.00035616,10]
[381972268,1756462251937,-481.10589444,0.00035616,10]
[381972269,1756462251946,-480.0,0.00035616,10]
[381972270,1756462251956,-480.0,0.00035616,10]